fUSD/lending_fUSD_20240925
["ID","MTS","AMOUNT","RATE_DAILY","PERIOD"]
[339151623,1727267471469,-4540.2067677,0.00012899,2]
[339151624,1727267471478,-2425.08,0.00012899,2]
[339151625,1727267471488,-157.42079766,0.00012899,2]
[339151626,1727267471501,-2267.65920234,0.00012899,2]
[339151627,1727267471510,-2425.08,0.00012899,2]
[339151628,1727267471520,-2425.08,0.00012899,2]
[339151629,1727267471529,-2425.08,0.00012899,2]
[339151630,1727267471538,-2425.08,0.00012899,2]
[339151631,1727267471548,-2425.08,0.00012899,2]
[339151632,1727267471557,-2425.08,0.00012899,2]
[339151633,1727267471566,-2425.08,0.00012899,2]
[339151634,1727267471575,-771.413929,0.00012899,2]
[339151635,1727267471586,-1653.666071,0.00012899,2]
[339151636,1727267471596,-205.27066547,0.00012899,2]
[339151637,1727267471607,-316.220239,0.00012899,2]
[339151638,1727267471618,-1903.58909553,0.00012899,2]
[339151639,1727267471627,-2425.08,0.00012899,2]
[339151640,1727267471637,-2425.08,0.00012899,2]
[339151641,1727267471647,-2425.08,0.00012899,2]
[339151642,1727267471656,-2425.08,0.00012899,2]
[339151643,1727267471665,-2425.08,0.00012899,2]
[339151644,1727267471674,-2425.08,0.00012899,2]
[339151645,1727267471683,-2425.08,0.00012899,2]
[339151646,1727267471692,-2425.08,0.00012899,2]
[339151647,1727267471701,-2217.53814939,0.00012899,2]
[339151648,1727267471712,-207.54185061,0.00012899,2]
[339151649,1727267471721,-727.6729919,0.00012899,2]
[339151650,1727267471731,-789.99,0.00012899,2]
[339151651,1727267471746,-907.61003055,0.00012899,2]
[339151652,1727267471754,-500.0,0.00012899,2]
[339151653,1727267471764,-500.0,0.00012899,2]
[339151654,1727267471773,-500.0,0.00012899,2]
[339151655,1727267471782,-500.0,0.00012899,2]
[339151656,1727267471793,-500.0,0.00012899,2]
[339151657,1727267471803,-500.0,0.00012899,2]
[339151658,1727267471811,-500.0,0.00012899,2]
[339151659,1727267471820,-364.27681815,0.00012899,2]
[339151660,1727267471833,-135.72318185,0.00012899,2]
[339151661,1727267471843,-500.0,0.00012899,2]
[339151662,1727267471853,-460.05896869,0.00012899,2]
[339151663,1727267471866,-39.94103131,0.00012899,2]
[339151664,1727267471878,-416.52896869,0.00012899,2]
[339151665,1727267472136,-454.31,0.00012894,2]
[339151666,1727267472145,-500.0,0.00012894,2]
[339151667,1727267472154,-500.0,0.00012895,2]
[339151668,1727267472163,-500.0,0.00012896,2]
[339151669,1727267472171,-500.0,0.00012897,2]
[339151670,1727267472180,-500.0,0.00012898,2]
[339151671,1727267472369,-500.0,0.00012898,2]
[339151672,1727267472379,-500.0,0.00012898,2]
[339151673,1727267472388,-500.0,0.00012898,2]
[339151674,1727267472398,-500.0,0.00012898,2]
[339151675,1727267472407,-500.0,0.00012898,2]
[339151676,1727267472415,-500.0,0.00012898,2]
[339151677,1727267472424,-500.0,0.00012898,2]
[339151678,1727267472434,-500.0,0.00012898,2]
[339151679,1727267472444,-500.0,0.00012898,2]
[339151680,1727267472453,-203.27569491,0.00012899,2]
[339151681,1727267472462,-1107.32,0.00012899,2]
[339151682,1727267472471,-1107.32,0.00012899,2]
[339151683,1727267472481,-1107.32,0.00012899,2]
[339151684,1727267472490,-1107.32,0.00012899,2]
[339151685,1727267472499,-533.13430508,0.00012899,2]
[339151686,1727267472511,-319.305,0.00012899,2]
[339151687,1727267476562,500.0,8.22e-05,2]
[339151688,1727267478148,500.0,9.59e-05,2]
[339151689,1727267480003,500.0,0.0001096,2]
[339151690,1727267558106,500.0,9.164e-05,2]
[339151691,1727267559674,500.0,0.00010534,2]
[339151693,1727267615579,1000.0,0.00021,60]
[339151694,1727267616635,1000.0,0.00021,60]
[339151695,1727267617504,1000.0,0.00021,60]
[339151696,1727267618145,1000.0,0.00021,60]
[339151697,1727267618668,1000.0,0.00021,60]
[339151698,1727267619187,1000.0,0.00021,60]
[339151699,1727267619501,1000.0,0.00021,60]
[339151700,1727267620312,1000.0,0.00021,60]
[339151701,1727267620991,1000.0,0.00021,60]
[339151702,1727267621576,1000.0,0.00021,60]
[339151703,1727267622319,1000.0,0.00021,60]
[339151704,1727267622821,1000.0,0.00021,60]
[339151705,1727267623290,1000.0,0.00021,60]
[339151706,1727267624173,1000.0,0.00021,60]
[339151707,1727267625045,1000.0,0.00021,60]
[339151710,1727267803237,151.34,9.961e-05,2]
[339151714,1727268199042,200.0,0.00020625,120]
[339151715,1727268340962,151.67,9.881e-05,2]
[339151722,1727268631807,-711.6,0.00011757,2]
[339151723,1727268631821,-288.4,0.00011757,2]
[339151724,1727268631832,-155.39,0.00011758,2]
[339151725,1727268631847,-250.0,0.0001178,2]
[339151726,1727268631856,-570.48924842,0.000118,2]
[339151727,1727268631866,-200.0,0.00011802,2]
[339151728,1727268631884,-494.77243153,0.00011802,2]
[339151729,1727268631895,-234.85,0.00011891,2]
[339151730,1727268631905,-500.0,0.00011904,2]
[339151731,1727268631915,-150.0,0.00012,10]
[339151732,1727268631926,-150.0,0.00012,10]
[339151733,1727268631936,-999.99,0.00012,2]
[339151734,1727268631946,-150.99,0.00012,2]
[339151735,1727268631957,-499.99,0.00012,2]
[339151736,1727268631967,-321.7764669,0.00012,2]
[339151737,1727268631979,-3018.11810362,0.00012,2]
[339151738,1727268631997,-314.94575095,0.00012,2]
[339151739,1727268632009,-662.80259174,0.00012,2]
[339151740,1727268632020,-16892.33994674,0.00012,2]
[339151741,1727268632032,-679.71,0.00012,2]
[339151742,1727268632072,-500.0,0.00012,2]
[339151743,1727268632084,-4390.21581886,0.00012,2]
[339151744,1727268632096,-2972.58132119,0.00012,2]
[339151745,1727268632106,-300.0,0.00012144,2]
[339151746,1727268632118,-151.67,0.00012145,2]
[339151747,1727268632128,-1773.2,0.00012145,2]
[339151748,1727268632137,-1320.14,0.00012145,2]
[339151749,1727268632148,-150.0,0.00012192,2]
[339151750,1727268632159,-189.98,0.00012323,2]
[339151751,1727268632170,-500.0,0.0001233,2]
[339151752,1727268632180,-179.36,0.00012356,2]
[339151753,1727268632189,-150.99,0.00012356,2]
[339151755,1727268632199,-1501.87,0.00012356,2]
[339151756,1727268632209,-150.0,0.00012644,2]
[339151758,1727268632219,-150.0,0.00012649,2]
[339151760,1727268632229,-299.99,0.00012686,2]
[339151762,1727268632239,-150.0,0.00012686,2]
[339151764,1727268632249,-716.2,0.000127,2]
[339151766,1727268632259,-150.0,0.000127,2]
[339151768,1727268632269,-422.78,0.000127,2]
[339151769,1727268632279,-1000.0,0.000127,2]
[339151770,1727268632293,-884.95971864,0.00012706,2]
[339151771,1727268632303,-150.0,0.00012742,2]
[339151772,1727268632315,-421.86233158,0.00012751,2]
[339151773,1727268632325,-150.0,0.00012758,2]
[339151774,1727268632334,-152.38337031,0.00012794,2]
[339151775,1727268632344,-500.0,0.00012795,2]
[339151776,1727268632355,-152.38337025,0.00012795,2]
[339151777,1727268632365,-4045.7538,0.00012795,2]
[339151778,1727268632375,-500.0,0.00012796,2]
[339151779,1727268632385,-152.38337025,0.00012796,2]
[339151780,1727268632395,-152.38337025,0.00012797,2]
[339151781,1727268632405,-355.46141424,0.00012798,2]
[339151782,1727268632461,-34.45469005,0.00012798,2]
[339151783,1727268632472,-150.0,0.00012798,2]
[339151784,1727268632481,-152.38337025,0.00012798,2]
[339151785,1727268632491,-389.91610429,0.00012798,2]
[339151786,1727268632501,-162.88509626,0.00012799,2]
[339151787,1727268632511,-152.38337025,0.00012799,2]
[339151788,1727268632521,-1974.79715508,0.00012799,2]
[339151789,1727268632530,-100.14431486,0.000128,2]
[339151790,1727268632542,-62.74078138,0.000128,2]
[339151791,1727268632551,-672.27921862,0.000128,2]
[339151792,1727268632565,-1302.51793646,0.000128,2]
[339151793,1727268632578,-63.48248967,0.000128,2]
[339151794,1727268632590,-3936.75334896,0.000128,2]
[339151795,1727268632600,-300.38,0.000128,2]
[339151796,1727268632609,-995.54,0.000128,2]
[339151797,1727268632619,-162.88509624,0.000128,2]
[339151798,1727268632629,-152.38337025,0.000128,2]
[339151799,1727268632639,-286.18085119,0.000128,2]
[339151800,1727268632649,-286.18085119,0.000128,2]
[339151801,1727268632658,-286.18085119,0.000128,2]
[339151802,1727268632668,-286.18085119,0.000128,2]
[339151803,1727268632680,-286.18085119,0.000128,2]
[339151804,1727268632690,-286.18085119,0.000128,2]
[339151805,1727268632699,-286.18085119,0.000128,2]
[339151806,1727268632709,-286.18085119,0.000128,2]
[339151807,1727268632718,-286.18085119,0.000128,2]
[339151808,1727268632728,-286.18085119,0.000128,2]
[339151809,1727268632741,-286.18085119,0.000128,2]
[339151810,1727268632750,-286.18085119,0.000128,2]
[339151811,1727268632760,-286.18085119,0.000128,2]
[339151812,1727268632770,-286.18085119,0.000128,2]
[339151813,1727268632779,-286.18085119,0.000128,2]
[339151814,1727268632789,-286.18085119,0.000128,2]
[339151815,1727268632799,-286.18085119,0.000128,2]
[339151816,1727268632809,-286.18085119,0.000128,2]
[339151817,1727268632820,-286.18085119,0.000128,2]
[339151818,1727268632830,-286.68,0.000128,2]
[339151819,1727268632839,-177.32829953,0.000128,2]
[339151820,1727268632849,-177.82,0.000128,2]
[339151821,1727268632859,-152.0,0.00012816,3]
[339151822,1727268632869,-150.0,0.00012854,2]
[339151823,1727268632882,-400.0,0.0001287,2]
[339151824,1727268632892,-400.0,0.0001287,2]
[339151825,1727268632902,-400.0,0.0001287,2]
[339151826,1727268632912,-400.0,0.0001287,2]
[339151827,1727268632923,-400.0,0.0001287,2]
[339151828,1727268632933,-400.0,0.0001287,2]
[339151829,1727268632942,-400.0,0.0001287,2]
[339151830,1727268632953,-400.0,0.0001287,2]
[339151831,1727268632963,-500.0,0.00012873,2]
[339151832,1727268632973,-500.0,0.00012873,2]
[339151833,1727268632982,-430.18251352,0.00012873,2]
[339151834,1727268632992,-511.8498062,0.00012873,2]
[339151835,1727268633001,-500.0,0.00012873,2]
[339151836,1727268633011,-200.0,0.00012873,2]
[339151837,1727268633021,-645.518535,0.00012876,2]
[339151838,1727268633031,-448.0,0.00012877,2]
[339151839,1727268633040,-1262.0,0.00012877,2]
[339151840,1727268633050,-625.0,0.00012877,2]
[339151841,1727268633060,-1029.301,0.00012877,2]
[339151842,1727268633070,-151.529,0.00012877,2]
[339151843,1727268633079,-558.0,0.00012877,2]
[339151844,1727268633089,-810.0,0.00012877,2]
[339151845,1727268633098,-553.0,0.00012877,2]
[339151846,1727268633108,-1917.0,0.00012877,2]
[339151847,1727268633118,-1939.634,0.00012877,2]
[339151848,1727268633127,-545.138,0.00012877,2]
[339151849,1727268633137,-150.0,0.00012877,2]
[339151850,1727268633147,-150.0,0.00012877,2]
[339151851,1727268633156,-1323.3,0.00012877,2]
[339151852,1727268633166,-272.967,0.00012877,2]
[339151853,1727268633175,-297.217,0.00012877,2]
[339151854,1727268633185,-150.0,0.00012877,2]
[339151855,1727268633194,-1081.0,0.00012877,2]
[339151856,1727268633203,-152.0,0.00012878,4]
[339151857,1727268633213,-5800.0,0.00012883,2]
[339151858,1727268633223,-153.83,0.00012884,2]
[339151859,1727268633233,-15534.4258314,0.00012891,2]
[339151860,1727268633242,-8921.27588108,0.00012891,2]
[339151861,1727268633254,-818.82444517,0.00012891,2]
[339151862,1727268633265,-867.99467088,0.00012891,2]
[339151863,1727268633287,-2019.02952842,0.00012891,2]
[339151864,1727268633338,-1571.8,0.00012891,2]
[339151865,1727268633350,-662.54834617,0.00012891,2]
[339151866,1727268633363,-4027.79003748,0.00012891,2]
[339151867,1727268633373,-5437.95996252,0.00012891,2]
[339151868,1727268637981,-159.27,0.00011901,2]
[339151869,1727268637992,-641.40916805,0.000128,2]
[339151870,1727268638004,-561.32297397,0.000128,2]
[339151871,1727268638016,-772.06501306,0.000128,2]
[339151872,1727268638027,-22.80300694,0.00012873,2]
[339151873,1727268638248,-477.19699306,0.00012873,2]
[339151874,1727268638260,-150.0,0.00012877,2]
[339151875,1727268638270,-6652.21643243,0.00012891,2]
[339151876,1727268638281,-10009.65664721,0.00012891,2]
[339152136,1727268642841,-294.3788371,0.00012791,2]
[339152137,1727268642852,-202.53168429,0.00012799,2]
[339152138,1727268642863,-144.26694494,0.00012891,2]
[339152139,1727268642873,-8182.45536517,0.00012891,2]
[339152140,1727268642888,-1308.00000413,0.00012891,2]
[339152141,1727268642900,-776.06146747,0.00012891,2]
[339152142,1727268642912,-15332.42022813,0.00012891,2]
[339152143,1727268642923,-28953.7741427,0.00012891,2]
[339152144,1727268642934,-2825.833806,0.00012891,2]
[339152145,1727268642944,-3436.1049632,0.00012891,2]
[339152146,1727268642955,-4046.3761203,0.00012891,2]
[339152147,1727268642966,-4656.6472775,0.00012891,2]
[339152149,1727268642976,-5266.9184347,0.00012891,2]
[339152150,1727268642986,-243.2040704,0.00012891,2]
[339152151,1727268642996,-295.7267733,0.00012891,2]
[339152152,1727268643007,-348.2494762,0.00012891,2]
[339152153,1727268643017,-400.7721791,0.00012891,2]
[339152154,1727268643027,-453.294882,0.00012891,2]
[339152155,1727268643036,-2367.9267044,0.00012891,2]
[339152156,1727268643046,-2873.0177226,0.00012891,2]
[339152157,1727268643056,-3378.1087409,0.00012891,2]
[339152158,1727268643067,-3883.1997592,0.00012891,2]
[339152159,1727268643077,-4388.2907774,0.00012891,2]
[339152160,1727268643088,-22228.1114295,0.00012891,2]
[339152161,1727268643098,-26907.7138357,0.00012891,2]
[339152162,1727268643108,-31587.3162419,0.00012891,2]
[339152163,1727268643118,-36266.9186481,0.00012891,2]
[339152164,1727268643128,-40946.5210543,0.00012891,2]
[339152165,1727268643138,-5977.3416725,0.00012891,2]
[339152166,1727268643152,-7235.729393,0.00012891,2]
[339152167,1727268643161,-8494.1171135,0.00012891,2]
[339152168,1727268643171,-9752.5048341,0.00012891,2]
[339152170,1727268643181,-11010.8925546,0.00012891,2]
[339152171,1727268643191,-5800.0,0.00012891,2]
[339152172,1727268643201,-500.0,0.00012893,2]
[339152173,1727268643211,-500.0,0.00012893,2]
[339152174,1727268643221,-500.0,0.00012893,2]
[339152176,1727268643231,-1822.58,0.00012893,2]
[339152178,1727268643241,-1515.26,0.00012893,2]
[339152180,1727268643251,-6482.31,0.00012893,2]
[339152182,1727268643261,-533.93,0.00012893,2]
[339152184,1727268643271,-500.0,0.00012893,2]
[339152186,1727268643280,-500.0,0.00012893,2]
[339152188,1727268643291,-500.0,0.00012893,2]
[339152190,1727268643301,-600.49,0.00012893,2]
[339152192,1727268643311,-500.0,0.00012893,2]
[339152193,1727268643323,-500.0,0.00012893,2]
[339152195,1727268643333,-500.0,0.00012893,2]
[339152197,1727268643343,-500.0,0.00012893,2]
[339152201,1727268643353,-916.64,0.00012893,2]
[339152204,1727268643362,-500.0,0.00012893,2]
[339152207,1727268643373,-500.0,0.00012893,2]
[339152211,1727268643382,-500.0,0.00012893,2]
[339152214,1727268643392,-500.0,0.00012893,2]
[339152217,1727268643402,-500.0,0.00012893,2]
[339152219,1727268643412,-500.0,0.00012893,2]
[339152221,1727268643422,-500.0,0.00012893,2]
[339152223,1727268643432,-500.0,0.00012893,2]
[339152225,1727268643441,-500.0,0.00012893,2]
[339152226,1727268643451,-444.63987516,0.00012894,2]
[339152227,1727268643461,-500.0,0.00012894,2]
[339152228,1727268643470,-500.0,0.00012894,2]
[339152229,1727268643480,-500.0,0.00012894,2]
[339152230,1727268643490,-500.0,0.00012894,2]
[339152231,1727268643500,-500.0,0.00012894,2]
[339152232,1727268643509,-500.0,0.00012894,2]
[339152233,1727268643519,-500.0,0.00012894,2]
[339152234,1727268643529,-500.0,0.00012894,2]
[339152235,1727268643539,-500.0,0.00012894,2]
[339152236,1727268643549,-500.0,0.00012894,2]
[339152237,1727268643559,-500.0,0.00012894,2]
[339152238,1727268643570,-500.0,0.00012894,2]
[339152239,1727268643579,-500.0,0.00012894,2]
[339152240,1727268643589,-500.0,0.00012894,2]
[339152241,1727268643598,-500.0,0.00012894,2]
[339152242,1727268643609,-500.0,0.00012894,2]
[339152243,1727268643619,-500.0,0.00012894,2]
[339152244,1727268643629,-636.23,0.00012894,2]
[339152245,1727268643640,-500.0,0.00012894,2]
[339152246,1727268643649,-500.0,0.00012894,2]
[339152247,1727268643660,-500.0,0.00012894,2]
[339152248,1727268643669,-500.0,0.00012894,2]
[339152249,1727268643678,-1037.82,0.00012894,2]
[339152250,1727268643711,-500.27951922,0.00012894,2]
[339152251,1727268643724,-500.0,0.00012894,2]
[339152252,1727268643735,-500.0,0.00012894,2]
[339152253,1727268643746,-500.0,0.00012894,2]
[339152254,1727268643757,-500.0,0.00012894,2]
[339152255,1727268643768,-500.0,0.00012894,2]
[339152256,1727268643778,-500.0,0.00012894,2]
[339152257,1727268643788,-500.0,0.00012894,2]
[339152258,1727268643798,-500.0,0.00012894,2]
[339152259,1727268643808,-500.0,0.00012894,2]
[339152260,1727268643819,-500.0,0.00012894,2]
[339152261,1727268643830,-500.0,0.00012894,2]
[339152262,1727268643840,-439.20622013,0.00012894,2]
[339152263,1727268643851,-500.0,0.00012894,2]
[339152264,1727268643861,-500.0,0.00012894,2]
[339152265,1727268643872,-500.0,0.00012894,2]
[339152266,1727268643887,-500.0,0.00012894,2]
[339152267,1727268643897,-500.0,0.00012894,2]
[339152268,1727268643908,-525.31,0.00012894,2]
[339152269,1727268643919,-500.0,0.00012894,2]
[339152270,1727268643929,-500.0,0.00012894,2]
[339152271,1727268643939,-500.0,0.00012894,2]
[339152272,1727268643949,-500.0,0.00012894,2]
[339152273,1727268643961,-500.0,0.00012894,2]
[339152274,1727268643972,-607.97,0.00012894,2]
[339152275,1727268643982,-500.0,0.00012894,2]
[339152276,1727268643992,-500.0,0.00012894,2]
[339152277,1727268644003,-500.0,0.00012894,2]
[339152278,1727268644013,-500.0,0.00012894,2]
[339152279,1727268644023,-500.0,0.00012894,2]
[339152280,1727268644034,-500.0,0.00012894,2]
[339152281,1727268644045,-500.0,0.00012894,2]
[339152282,1727268644056,-500.0,0.00012894,2]
[339152283,1727268644066,-500.0,0.00012894,2]
[339152284,1727268644076,-500.0,0.00012894,2]
[339152285,1727268644086,-500.0,0.00012894,2]
[339152286,1727268644096,-500.0,0.00012894,2]
[339152287,1727268644106,-500.0,0.00012894,2]
[339152288,1727268644116,-500.0,0.00012894,2]
[339152289,1727268644126,-500.0,0.00012894,2]
[339152290,1727268644136,-500.0,0.00012894,2]
[339152291,1727268644147,-501.57882655,0.00012894,2]
[339152292,1727268644157,-500.0,0.00012894,2]
[339152293,1727268644167,-500.0,0.00012894,2]
[339152294,1727268644178,-500.0,0.00012894,2]
[339152295,1727268644188,-500.0,0.00012894,2]
[339152296,1727268644198,-500.0,0.00012894,2]
[339152297,1727268644207,-500.0,0.00012894,2]
[339152298,1727268644217,-500.0,0.00012894,2]
[339152299,1727268644228,-500.0,0.00012894,2]
[339152300,1727268644237,-500.0,0.00012894,2]
[339152301,1727268644248,-500.0,0.00012894,2]
[339152302,1727268644258,-500.0,0.00012894,2]
[339152303,1727268644269,-500.0,0.00012894,2]
[339152304,1727268644281,-500.0,0.00012894,2]
[339152305,1727268644292,-500.0,0.00012894,2]
[339152306,1727268644301,-500.0,0.00012894,2]
[339152307,1727268644312,-500.0,0.00012894,2]
[339152308,1727268644323,-500.0,0.00012894,2]
[339152309,1727268644333,-500.0,0.00012894,2]
[339152310,1727268644343,-500.0,0.00012894,2]
[339152311,1727268644353,-500.0,0.00012894,2]
[339152312,1727268644363,-500.0,0.00012894,2]
[339152313,1727268644373,-500.0,0.00012894,2]
[339152314,1727268644384,-500.0,0.00012894,2]
[339152315,1727268644395,-500.0,0.00012894,2]
[339152316,1727268644404,-500.0,0.00012894,2]
[339152317,1727268644415,-500.0,0.00012894,2]
[339152318,1727268644426,-537.16,0.00012894,2]
[339152319,1727268644436,-500.0,0.00012894,2]
[339152320,1727268644445,-500.0,0.00012894,2]
[339152321,1727268644455,-500.0,0.00012894,2]
[339152322,1727268644465,-500.0,0.00012894,2]
[339152323,1727268644475,-500.0,0.00012894,2]
[339152324,1727268644485,-500.0,0.00012894,2]
[339152325,1727268644495,-500.0,0.00012894,2]
[339152326,1727268644505,-500.0,0.00012894,2]
[339152327,1727268644515,-500.0,0.00012894,2]
[339152328,1727268644525,-500.0,0.00012894,2]
[339152329,1727268644535,-500.0,0.00012894,2]
[339152330,1727268644547,-500.0,0.00012894,2]
[339152331,1727268644556,-500.0,0.00012894,2]
[339152332,1727268644567,-500.0,0.00012894,2]
[339152333,1727268644576,-500.0,0.00012894,2]
[339152334,1727268644586,-500.0,0.00012894,2]
[339152335,1727268644596,-500.0,0.00012894,2]
[339152336,1727268644605,-500.0,0.00012894,2]
[339152337,1727268644615,-500.0,0.00012894,2]
[339152338,1727268644625,-500.0,0.00012894,2]
[339152339,1727268644635,-500.0,0.00012894,2]
[339152340,1727268644644,-500.0,0.00012894,2]
[339152341,1727268644655,-500.0,0.00012894,2]
[339152342,1727268644665,-502.35920582,0.00012894,2]
[339152343,1727268644675,-500.0,0.00012894,2]
[339152344,1727268644684,-500.0,0.00012894,2]
[339152345,1727268644694,-502.4615619,0.00012894,2]
[339152346,1727268644704,-500.0,0.00012894,2]
[339152347,1727268644713,-500.0,0.00012894,2]
[339152348,1727268644723,-415.0162384,0.00012894,2]
[339152349,1727268644733,-500.0,0.00012894,2]
[339152350,1727268644742,-500.0,0.00012894,2]
[339152351,1727268644752,-500.0,0.00012894,2]
[339152352,1727268644762,-500.0,0.00012894,2]
[339152353,1727268644771,-500.0,0.00012894,2]
[339152354,1727268644782,-500.0,0.00012894,2]
[339152355,1727268644791,-500.0,0.00012894,2]
[339152356,1727268644801,-500.0,0.00012894,2]
[339152357,1727268644811,-500.0,0.00012894,2]
[339152358,1727268644822,-500.0,0.00012894,2]
[339152359,1727268644832,-500.0,0.00012894,2]
[339152360,1727268644842,-500.0,0.00012894,2]
[339152361,1727268644852,-500.0,0.00012894,2]
[339152362,1727268644863,-500.0,0.00012894,2]
[339152363,1727268644873,-500.0,0.00012894,2]
[339152364,1727268644886,-500.0,0.00012894,2]
[339152365,1727268644896,-512.67833446,0.00012894,2]
[339152366,1727268644906,-500.0,0.00012894,2]
[339152367,1727268644915,-500.0,0.00012894,2]
[339152368,1727268644926,-526.79,0.00012894,2]
[339152369,1727268644936,-500.0,0.00012894,2]
[339152370,1727268644946,-500.0,0.00012894,2]
[339152371,1727268644957,-500.0,0.00012894,2]
[339152372,1727268644966,-500.0,0.00012894,2]
[339152373,1727268644976,-500.0,0.00012894,2]
[339152374,1727268644986,-500.0,0.00012894,2]
[339152375,1727268644996,-500.0,0.00012894,2]
[339152376,1727268645005,-500.0,0.00012894,2]
[339152377,1727268645014,-500.0,0.00012894,2]
[339152378,1727268645024,-500.0,0.00012894,2]
[339152379,1727268645034,-500.0,0.00012894,2]
[339152380,1727268645043,-500.0,0.00012894,2]
[339152381,1727268645053,-580.25,0.00012894,2]
[339152382,1727268645063,-503.69029563,0.00012894,2]
[339152383,1727268645083,-500.0,0.00012894,2]
[339152384,1727268645093,-500.0,0.00012894,2]
[339152385,1727268645102,-500.0,0.00012894,2]
[339152386,1727268645112,-500.0,0.00012894,2]
[339152387,1727268645122,-500.0,0.00012894,2]
[339152388,1727268645131,-500.0,0.00012894,2]
[339152389,1727268645141,-500.0,0.00012894,2]
[339152390,1727268645151,-500.0,0.00012894,2]
[339152391,1727268645161,-500.0,0.00012894,7]
[339152392,1727268645171,-500.0,0.00012894,2]
[339152393,1727268645180,-500.0,0.00012894,2]
[339152394,1727268645190,-500.0,0.00012894,2]
[339152395,1727268645200,-277.51258827,0.00012894,2]
[339152396,1727268645210,-500.0,0.00012894,2]
[339152397,1727268645219,-500.0,0.00012894,2]
[339152398,1727268645229,-500.0,0.00012894,2]
[339152399,1727268645239,-500.0,0.00012894,2]
[339152400,1727268645249,-500.0,0.00012894,2]
[339152401,1727268645258,-500.0,0.00012894,2]
[339152402,1727268645268,-500.0,0.00012894,2]
[339152403,1727268645278,-500.0,0.00012894,2]
[339152404,1727268645287,-500.0,0.00012894,2]
[339152405,1727268645296,-500.0,0.00012894,2]
[339152406,1727268645306,-500.0,0.00012894,2]
[339152407,1727268645315,-500.0,0.00012894,2]
[339152408,1727268645327,-500.0,0.00012894,2]
[339152409,1727268645337,-500.0,0.00012894,2]
[339152410,1727268645346,-500.0,0.00012894,2]
[339152411,1727268645356,-500.0,0.00012894,2]
[339152412,1727268645365,-500.0,0.00012894,2]
[339152413,1727268645375,-175.72,0.00012894,2]
[339152414,1727268645384,-500.0,0.00012894,2]
[339152415,1727268645394,-500.0,0.00012894,2]
[339152416,1727268645403,-500.0,0.00012894,2]
[339152417,1727268645412,-500.0,0.00012894,2]
[339152418,1727268645422,-500.0,0.00012894,2]
[339152419,1727268645431,-500.0,0.00012894,2]
[339152420,1727268645440,-500.0,0.00012894,2]
[339152421,1727268645450,-500.0,0.00012894,2]
[339152422,1727268645459,-500.0,0.00012894,2]
[339152423,1727268645469,-500.0,0.00012894,2]
[339152424,1727268645478,-500.0,0.00012894,2]
[339152425,1727268645488,-500.0,0.00012894,2]
[339152426,1727268645498,-500.0,0.00012894,2]
[339152427,1727268645507,-584.92,0.00012894,2]
[339152428,1727268645517,-584.49,0.00012894,2]
[339152429,1727268645526,-500.0,0.00012894,2]
[339152431,1727268645791,-500.0,0.00012894,2]
[339152432,1727268645802,-500.0,0.00012894,2]